fUST/lending_fUST_20240727
["ID","MTS","AMOUNT","RATE_DAILY","PERIOD"]
[333284867,1722019854194,-500.0,0.00014246,2]
[333284868,1722019854205,-500.0,0.00014246,2]
[333284869,1722019854217,-940.06,0.00014246,2]
[333284870,1722019854228,-151.0,0.00014246,2]
[333284871,1722019854240,-500.0,0.00014246,2]
[333284872,1722019854252,-260.582424,0.00014246,2]
[333284873,1722019854264,-151.0,0.00014246,2]
[333284874,1722019854275,-500.0,0.00014246,2]
[333284875,1722019854287,-500.0,0.00014246,2]
[333284876,1722019854298,-260.582424,0.00014246,2]
[333284877,1722019854310,-500.0,0.00014246,2]
[333284878,1722019854321,-503.2,0.00014246,2]
[333284879,1722019854334,-500.0,0.00014246,2]
[333284880,1722019854345,-1351.37,0.00014246,2]
[333284881,1722019854357,-151.0,0.00014246,2]
[333284882,1722019854369,-500.0,0.00014246,2]
[333284883,1722019854380,-500.0,0.00014246,2]
[333284884,1722019854392,-380.26625148,0.00014247,2]
[333284885,1722019855356,-500.0,0.00013698,2]
[333284886,1722020743125,-182.98073957,9.999e-05,2]
[333284887,1722020743153,-165.103965,0.00012754,2]
[333284888,1722020743179,-165.103965,0.00012805,2]
[333284889,1722020743203,-165.103965,0.00012856,2]
[333284890,1722020743227,-165.103965,0.00012907,2]
[333284891,1722020743249,-165.103965,0.00012958,2]
[333284892,1722020743272,-165.103965,0.00013009,2]
[333284893,1722020743295,-165.103965,0.00013061,2]
[333284894,1722020743318,-165.103965,0.00013112,2]
[333284895,1722020743340,-165.103965,0.00013163,2]
[333284896,1722020743362,-165.103965,0.00013214,2]
[333284897,1722020743384,-165.103965,0.00013265,2]
[333284898,1722020743574,-64.84030927,0.00013316,2]
[333284899,1722020845420,-100.26365573,0.00013316,2]
[333284900,1722020845448,-165.103965,0.00013367,2]
[333284901,1722020845472,-165.103965,0.00013418,2]
[333284902,1722020845495,-157.334295,0.00013425,2]
[333284903,1722020845518,-1234.38836457,0.00013598,2]
[333284904,1722020845540,-200.0,0.00013598,2]
[333284905,1722020845564,-150.112233,0.000136,2]
[333284906,1722020845588,-2517.35142834,0.00013688,2]
[333284964,1722021031906,-252.2315596,0.00012599,2]
[333284966,1722021031919,-399.99795352,0.00013688,2]
[333284968,1722021031930,-1847.9179885,0.00013688,2]
[333284970,1722021031940,-738.58105149,0.00013688,2]
[333284972,1722021031950,-507.20628239,0.00013698,2]
[333284974,1722021031960,-1161.43265866,0.00013698,2]
[333284976,1722021031973,-3009.33720358,0.00013698,2]
[333284978,1722021031983,-502.3462927,0.00013698,2]
[333284980,1722021031995,-500.0,0.00013698,2]
[333284982,1722021032006,-515.33271891,0.00013698,2]
[333284984,1722021032018,-517.330174,0.00013698,2]
[333284986,1722021032030,-500.0,0.00013698,2]
[333284988,1722021032040,-515.03251969,0.00013698,2]
[333284990,1722021032050,-592.86738694,0.00013698,2]
[333284992,1722021032060,-500.0,0.00013698,2]
[333284994,1722021032069,-8581.62,0.00013698,2]
[333284996,1722021032078,-8581.62,0.00013698,2]
[333284998,1722021032089,-3545.19069773,0.00013698,2]
[333285104,1722021037951,-5036.42930227,0.00013698,2]
[333285106,1722021037962,-7376.17591973,0.00013698,2]
[333285108,1722021037975,-898.78971019,0.00013698,2]
[333285110,1722021037987,-306.65437008,0.00013698,2]
[333285112,1722021037999,-1489.55989776,0.00013698,2]
[333285114,1722021038011,-7092.06010224,0.00013698,2]
[333285116,1722021038020,-8581.62,0.00013698,2]
[333285118,1722021038029,-2199.70660505,0.00013698,2]
[333285119,1722021038041,-5823.96389892,0.00013698,2]
[333285120,1722021038055,-557.94949603,0.00013698,2]
[333285121,1722021038065,-1729.19646353,0.00013698,2]
[333285123,1722021038078,-6852.42353647,0.00013698,2]
[333285124,1722021038089,-8581.62,0.00013698,2]
[333285125,1722021038101,-500.0,0.00013698,2]
[333285126,1722021038110,-5117.27338406,0.00013698,2]
[333285127,1722021038122,-3464.34661594,0.00013698,2]
[333285128,1722021038131,-8581.62,0.00013698,2]
[333285129,1722021038141,-8581.62,0.00013698,2]
[333285130,1722021038150,-8581.62,0.00013698,2]
[333285131,1722021038159,-8581.62,0.00013698,2]
[333285132,1722021038169,-5027.24325722,0.00013698,2]
[333285174,1722021040115,-3439.54392272,0.00013698,2]
[333285181,1722021040180,-114.83282006,0.00013698,2]
[333285184,1722021040190,-8581.62,0.00013698,2]
[333285186,1722021040200,-8581.62,0.00013698,2]
[333285188,1722021040210,-8581.62,0.00013698,2]
[333285189,1722021040220,-8581.62,0.00013698,2]
[333285192,1722021040230,-8581.62,0.00013698,2]
[333285194,1722021040240,-8581.62,0.00013698,2]
[333285195,1722021040249,-8581.62,0.00013698,2]
[333285197,1722021040259,-8581.62,0.00013698,2]
[333285199,1722021040269,-8581.81938284,0.00013698,2]
[333285201,1722021040279,-500.0,0.00013698,2]
[333285203,1722021040289,-516.06135797,0.00013698,2]
[333285205,1722021040299,-534.68855558,0.00013698,2]
[333285207,1722021040309,-500.0,0.00013698,2]
[333285210,1722021040320,-500.0,0.00013698,2]
[333285212,1722021040330,-503.88218785,0.00013698,2]
[333285214,1722021040340,-502.04888662,0.00013698,2]
[333285216,1722021040350,-501.2481524,0.00013698,2]
[333285218,1722021040360,-500.0,0.00013698,2]
[333285220,1722021040370,-500.0,0.00013698,2]
[333285222,1722021040380,-500.0,0.00013698,2]
[333285224,1722021040393,-193.38715633,0.00013698,2]
[333285226,1722021040402,-505.92248402,0.00013698,2]
[333285228,1722021040412,-500.0,0.00013698,2]
[333285230,1722021040422,-501.11110698,0.00013698,2]
[333285232,1722021040431,-500.0,0.00013698,2]
[333285234,1722021040441,-500.0,0.00013698,2]
[333285236,1722021040450,-515.77249068,0.00013698,2]
[333285238,1722021040460,-500.0,0.00013698,2]
[333285240,1722021040470,-501.34573133,0.00013698,2]
[333285242,1722021040480,-500.0,0.00013698,2]
[333285244,1722021040490,-519.42437233,0.00013698,2]
[333285246,1722021040499,-500.0,0.00013698,2]
[333285248,1722021040510,-500.0,0.00013698,2]
[333285250,1722021040520,-500.0,0.00013698,2]
[333285266,1722021040529,-500.0,0.00013698,2]
[333285274,1722021040727,-500.0,0.00013698,2]
[333285276,1722021040740,-500.66325794,0.00013698,2]
[333285278,1722021040751,-500.0,0.00013698,2]
[333285280,1722021040762,-500.0,0.00013698,2]
[333285282,1722021040773,-500.0,0.00013698,2]
[333285285,1722021040787,-500.39114222,0.00013698,2]
[333285287,1722021040798,-500.0,0.00013698,2]
[333285289,1722021040808,-748.99,0.00013698,2]
[333285291,1722021040819,-500.0,0.00013698,2]
[333285293,1722021040829,-500.0,0.00013698,2]
[333285295,1722021040839,-500.0,0.00013698,2]
[333285297,1722021040848,-500.0,0.00013698,2]
[333285299,1722021040858,-500.0,0.00013698,2]
[333285301,1722021040867,-500.0,0.00013698,2]
[333285303,1722021040877,-500.0,0.00013698,2]
[333285305,1722021040886,-500.0,0.00013698,2]
[333285307,1722021040895,-500.0,0.00013698,2]
[333285309,1722021040905,-566.3,0.00013698,2]
[333285311,1722021040915,-500.0,0.00013698,2]
[333285313,1722021040929,-500.0,0.00013698,2]
[333285315,1722021040938,-533.36,0.00013698,2]
[333285317,1722021040947,-500.0,0.00013698,2]
[333285319,1722021040959,-758.63,0.00013698,2]
[333285321,1722021040969,-500.0,0.00013698,2]
[333285323,1722021040980,-500.0,0.00013698,2]
[333285325,1722021040991,-924.87,0.00013698,2]
[333285327,1722021041003,-500.0,0.00013698,2]
[333285329,1722021041014,-640.43780664,0.00013698,2]
[333285331,1722021041025,-500.0,0.00013698,2]
[333285333,1722021041035,-513.49145034,0.00013698,2]
[333285335,1722021041044,-500.0,0.00013698,2]
[333285337,1722021041053,-500.0,0.00013698,2]
[333285339,1722021041063,-502.50851254,0.00013698,2]
[333285341,1722021041074,-500.0,0.00013698,2]
[333285344,1722021041087,-500.0,0.00013698,2]
[333285346,1722021041098,-500.0,0.00013698,2]
[333285348,1722021041108,-500.0,0.00013698,2]
[333285350,1722021041120,-505.2805915,0.00013698,2]
[333285352,1722021041131,-500.0,0.00013698,2]
[333285354,1722021041142,-708.43,0.00013698,2]
[333285356,1722021041152,-500.0,0.00013698,2]
[333285358,1722021041163,-500.0,0.00013698,2]
[333285360,1722021041174,-500.0,0.00013698,2]
[333285362,1722021041184,-500.0,0.00013698,2]
[333285364,1722021041196,-500.0,0.00013698,2]
[333285366,1722021041208,-500.0,0.00013698,2]
[333285368,1722021041217,-523.82,0.00013698,2]
[333285370,1722021041226,-500.0,0.00013698,2]
[333285372,1722021041236,-500.0,0.00013698,2]
[333285374,1722021041249,-500.0,0.00013698,2]
[333285376,1722021041259,-500.0,0.00013698,2]
[333285378,1722021041269,-500.0,0.00013698,2]
[333285380,1722021041279,-500.0,0.00013698,2]
[333285382,1722021041290,-500.0,0.00013698,2]
[333285384,1722021041299,-505.86713518,0.00013698,2]
[333285386,1722021041309,-500.0,0.00013698,2]
[333285388,1722021041319,-353.63996096,0.00013698,2]
[333285390,1722021041331,-500.0,0.00013698,2]
[333285392,1722021041342,-501.00313867,0.00013698,2]
[333285394,1722021041353,-500.0,0.00013698,2]
[333285396,1722021041363,-500.0,0.00013698,2]
[333285398,1722021041374,-500.0,0.00013698,2]
[333285400,1722021041385,-500.0,0.00013698,2]
[333285403,1722021041397,-500.0,0.00013698,2]
[333285405,1722021041407,-500.0,0.00013698,2]
[333285407,1722021041417,-500.0,0.00013698,2]
[333285409,1722021041427,-500.0,0.00013698,2]
[333285411,1722021041438,-500.0,0.00013698,2]
[333285413,1722021041447,-500.0,0.00013698,2]
[333285415,1722021041458,-624.74,0.00013698,2]
[333285417,1722021041468,-500.0,0.00013698,2]
[333285419,1722021041478,-500.0,0.00013698,2]
[333285421,1722021041488,-686.26,0.00013698,2]
[333285423,1722021041498,-500.0,0.00013698,2]
[333285425,1722021041508,-302.55066996,0.00013698,2]
[333285427,1722021041518,-457.91919366,0.00013698,2]
[333285429,1722021041528,-638.79,0.00013698,2]
[333285431,1722021041540,-268.45224502,0.00013698,2]
[333285433,1722021041550,-500.0,0.00013698,2]
[333285435,1722021041560,-500.63549699,0.00013698,2]
[333285437,1722021041570,-485.13906407,0.00013698,2]
[333285439,1722021041580,-801.28,0.00013698,2]
[333285441,1722021041590,-500.0,0.00013698,2]
[333285443,1722021041601,-500.0,0.00013698,2]
[333285445,1722021041610,-500.0,0.00013698,2]
[333285447,1722021041622,-500.0,0.00013698,2]
[333285450,1722021041635,-500.0,0.00013698,2]
[333285452,1722021041646,-790.51,0.00013698,2]
[333285454,1722021041658,-500.0,0.00013698,2]
[333285456,1722021041669,-500.0,0.00013698,2]
[333285459,1722021041682,-500.0,0.00013698,2]
[333285461,1722021041694,-500.0,0.00013698,2]
[333285463,1722021041704,-500.0,0.00013698,2]
[333285465,1722021041714,-938.27,0.00013698,2]
[333285467,1722021041724,-500.0,0.00013698,2]
[333285469,1722021041735,-500.0,0.00013698,2]
[333285471,1722021041745,-500.0,0.00013698,2]
[333285473,1722021041755,-500.0,0.00013698,2]
[333285475,1722021041765,-500.0,0.00013698,2]
[333285477,1722021041775,-500.0,0.00013698,2]
[333285479,1722021041785,-352.51399078,0.00013698,2]
[333285481,1722021041795,-500.0,0.00013698,2]
[333285483,1722021041804,-500.0,0.00013698,2]
[333285485,1722021041816,-503.48151961,0.00013698,2]
[333285487,1722021041826,-500.0,0.00013698,2]
[333285489,1722021041835,-500.0,0.00013698,2]
[333285490,1722021041844,-722.32,0.00013698,2]
[333285491,1722021041852,-701.42,0.00013698,2]
[333285492,1722021041861,-500.0,0.00013698,2]
[333285493,1722021041871,-500.0,0.00013698,2]
[333285494,1722021041880,-500.0,0.00013698,2]
[333285495,1722021041889,-500.0,0.00013698,2]
[333285497,1722021041899,-500.0,0.00013698,2]
[333285499,1722021041911,-500.0,0.00013698,2]
[333285501,1722021041922,-1370.22,0.00013698,2]
[333285503,1722021041932,-518.23,0.00013698,2]
[333285505,1722021041942,-500.0,0.00013698,2]
[333285507,1722021041954,-500.0,0.00013698,2]
[333285509,1722021041964,-500.0,0.00013698,2]
[333285511,1722021041974,-236.96465992,0.00013698,2]
[333285513,1722021041985,-500.0,0.00013698,2]
[333285515,1722021041994,-500.0,0.00013698,2]
[333285517,1722021042005,-502.26495527,0.00013698,2]
[333285519,1722021042014,-500.0,0.00013698,2]
[333285521,1722021042024,-500.0,0.00013698,2]
[333285523,1722021042035,-618.21040356,0.00013698,2]
[333285525,1722021042045,-618.25608533,0.00013698,2]
[333285527,1722021042054,-500.0,0.00013698,2]
[333285529,1722021042063,-502.76179262,0.00013698,2]
[333285531,1722021042074,-500.0,0.00013698,2]
[333285533,1722021042083,-500.0,0.00013698,2]
[333285535,1722021042093,-500.0,0.00013698,2]
[333285537,1722021042102,-550.54050196,0.00013698,2]
[333285539,1722021042112,-640.54637123,0.00013698,2]
[333285541,1722021042121,-500.0,0.00013698,2]
[333285543,1722021042131,-500.0,0.00013698,2]
[333285545,1722021042141,-500.0,0.00013698,2]
[333285547,1722021042150,-500.0,0.00013698,2]
[333285549,1722021042160,-500.0,0.00013698,2]
[333285551,1722021042170,-500.0,0.00013698,2]
[333285553,1722021042181,-500.0,0.00013698,2]
[333285555,1722021042191,-500.0,0.00013698,2]
[333285557,1722021042201,-500.0,0.00013698,2]
[333285559,1722021042211,-500.0,0.00013698,2]
[333285561,1722021042221,-500.0,0.00013698,2]
[333285563,1722021042230,-500.0,0.00013698,2]
[333285565,1722021042240,-500.0,0.00013698,2]
[333285567,1722021042249,-500.0,0.00013698,2]
[333285569,1722021042258,-500.0,0.00013698,2]
[333285571,1722021042268,-500.0,0.00013698,2]
[333285573,1722021042277,-500.0,0.00013698,2]
[333285575,1722021042287,-500.0,0.00013698,2]
[333285577,1722021042296,-503.636417,0.00013698,2]
[333285579,1722021042306,-1658.6,0.00013698,2]
[333285581,1722021042317,-500.0,0.00013698,2]
[333285583,1722021042329,-500.0,0.00013698,2]
[333285585,1722021042340,-655.58,0.00013698,2]
[333285587,1722021042350,-816.13,0.00013698,2]
[333285589,1722021042359,-500.0,0.00013698,2]
[333285592,1722021042368,-503.8757368,0.00013698,2]
[333285595,1722021042377,-500.0,0.00013698,2]
[333285598,1722021042390,-4162.21,0.00013698,2]
[333285601,1722021042400,-1087.77,0.00013698,2]
[333285605,1722021042412,-500.0,0.00013698,2]
[333285608,1722021042422,-500.0,0.00013698,2]
[333285610,1722021042432,-721.71,0.00013698,2]
[333285612,1722021042442,-500.0,0.00013698,2]
[333285614,1722021042452,-500.0,0.00013698,2]
[333285616,1722021042461,-500.0,0.00013698,2]
[333285618,1722021042470,-500.0,0.00013698,2]
[333285620,1722021042480,-879.5,0.00013698,2]
[333285622,1722021042489,-639.12,0.00013698,2]
[333285624,1722021042499,-500.0,0.00013698,2]
[333285626,1722021042509,-500.0,0.00013698,2]
[333285628,1722021042519,-575.12878761,0.00013698,2]
[333285630,1722021042528,-500.0,0.00013698,2]
[333285632,1722021042539,-500.0,0.00013698,2]
[333285635,1722021042548,-500.0,0.00013698,2]
[333285637,1722021042559,-500.0,0.00013698,2]
[333285639,1722021042568,-500.0,0.00013698,2]
[333285642,1722021042578,-604.67,0.00013698,2]
[333285644,1722021042587,-500.0,0.00013698,2]
[333285646,1722021042597,-500.0,0.00013698,2]
[333285648,1722021042607,-500.0,0.00013698,2]
[333285651,1722021042617,-500.0,0.00013698,2]
[333285654,1722021042626,-4346.56,0.00013698,2]
[333285657,1722021042637,-500.0,0.00013698,2]
[333285659,1722021042647,-1534.89,0.00013698,2]
[333285661,1722021042657,-564.27,0.00013698,2]
[333285663,1722021042666,-500.0,0.00013698,2]
[333285665,1722021042676,-1736.85,0.00013698,2]
[333285667,1722021042685,-500.0,0.00013698,2]
[333285669,1722021042696,-500.0,0.00013698,2]
[333285672,1722021042707,-500.0,0.00013698,2]
[333285674,1722021042717,-500.0,0.00013698,2]
[333285676,1722021042728,-500.0,0.00013698,2]
[333285678,1722021042739,-516.12729304,0.00013698,2]
[333285680,1722021042750,-568.17,0.00013698,2]
[333285682,1722021042760,-962.41,0.00013698,2]
[333285684,1722021042769,-500.0,0.00013698,2]
[333285686,1722021042781,-500.0,0.00013698,2]
[333285688,1722021042791,-730.01,0.00013698,2]
[333285691,1722021042801,-500.0,0.00013698,2]
[333285693,1722021042812,-621.24,0.00013698,2]
[333285695,1722021042825,-500.0,0.00013698,2]
[333285697,1722021042836,-500.0,0.00013698,2]
[333285699,1722021042847,-500.0,0.00013698,2]
[333285701,1722021042858,-500.0,0.00013698,2]
[333285704,1722021042868,-500.0,0.00013698,2]
[333285706,1722021042879,-500.0,0.00013698,2]
[333285708,1722021042889,-501.53796063,0.00013698,2]
[333285710,1722021042898,-500.0,0.00013698,2]
[333285712,1722021042910,-500.0,0.00013698,2]
[333285714,1722021042922,-500.0,0.00013698,2]
[333285716,1722021042932,-500.0,0.00013698,2]
[333285718,1722021042943,-500.0,0.00013698,2]
[333285720,1722021042955,-500.0,0.00013698,2]
[333285723,1722021042968,-500.0,0.00013698,2]
[333285725,1722021042978,-500.0,0.00013698,2]
[333285727,1722021042989,-500.0,0.00013698,2]
[333285729,1722021043000,-500.0,0.00013698,2]
[333285731,1722021043011,-500.0,0.00013698,2]
[333285733,1722021043021,-500.0,0.00013698,2]
[333285735,1722021043032,-500.000001,0.00013698,2]
[333285737,1722021043043,-868.13,0.00013698,2]
[333285739,1722021043053,-500.0,0.00013698,2]
[333285742,1722021043065,-509.0,0.00013698,2]
[333285744,1722021043075,-500.85186989,0.00013698,2]
[333285746,1722021043084,-1451.39,0.00013698,2]
[333285748,1722021043094,-1372.24,0.00013698,2]
[333285750,1722021043106,-500.0,0.00013698,2]
[333285753,1722021043117,-552.42,0.00013698,2]
[333285755,1722021043129,-500.0,0.00013698,2]
[333285757,1722021043139,-500.0,0.00013698,2]
[333285759,1722021043150,-500.0,0.00013698,2]
[333285761,1722021043162,-500.0,0.00013698,2]
[333285763,1722021043172,-393.76072345,0.00013698,2]
[333285765,1722021043182,-500.0,0.00013698,2]
[333285768,1722021043193,-536.03,0.00013698,2]
[333285770,1722021043203,-522.36028457,0.00013698,2]
[333285772,1722021043213,-500.0,0.00013698,2]
[333285774,1722021043223,-500.0,0.00013698,2]
[333285777,1722021043233,-500.0,0.00013698,2]
[333285779,1722021043244,-500.0,0.00013698,2]
[333285781,1722021043253,-893.49,0.00013698,2]
[333285783,1722021043262,-1503.35,0.00013698,2]
[333285785,1722021043272,-2881.37,0.00013698,2]
[333285787,1722021043282,-500.0,0.00013698,2]
[333285789,1722021043292,-562.6930076,0.00013698,2]
[333285791,1722021043302,-3650.34,0.00013698,2]
[333285793,1722021043312,-500.0,0.00013698,2]
[333285795,1722021043323,-500.0,0.00013698,2]
[333285797,1722021043332,-500.0,0.00013698,2]
[333285799,1722021043343,-500.0,0.00013698,2]
[333285801,1722021043353,-500.0,0.00013698,2]
[333285803,1722021043363,-500.0,0.00013698,2]
[333285805,1722021043373,-622.78,0.00013698,2]
[333285807,1722021043383,-500.0,0.00013698,2]
[333285809,1722021043393,-500.0,0.00013698,2]
[333285810,1722021043403,-500.0,0.00013698,2]
[333285812,1722021043413,-500.0,0.00013698,2]
[333285814,1722021043422,-504.3622422,0.00013698,2]
[333285816,1722021043432,-500.0,0.00013698,2]
[333285817,1722021043443,-399.84210935,0.00013698,2]
[333285819,1722021043452,-542.63,0.00013698,2]
[333285821,1722021043463,-630.61875871,0.00013698,2]
[333285822,1722021043472,-500.0,0.00013698,2]
[333285824,1722021043482,-500.0,0.00013698,2]
[333285825,1722021043493,-506.78547988,0.00013698,2]
[333285826,1722021043502,-788.61,0.00013698,2]
[333285827,1722021043511,-500.0,0.00013698,2]
[333285828,1722021043520,-500.0,0.00013698,2]
[333285829,1722021043530,-610.62,0.00013698,2]
[333285830,1722021043543,-505.39149835,0.00013698,2]
[333285831,1722021043553,-500.0,0.00013698,2]
[333285832,1722021043563,-500.0,0.00013698,2]
[333285833,1722021043573,-500.0,0.00013698,2]
[333285834,1722021043583,-500.0,0.00013698,2]
[333285835,1722021043593,-500.0,0.00013698,2]
[333285836,1722021043603,-509.40211668,0.00013698,2]
[333285837,1722021043613,-500.0,0.00013698,2]
[333285838,1722021043622,-500.0,0.00013698,2]
[333285839,1722021043632,-500.0,0.00013698,2]
[333285840,1722021043641,-793.03,0.00013698,2]
[333285841,1722021043651,-500.0,0.00013698,2]
[333285842,1722021043660,-500.0,0.00013698,2]
[333285843,1722021043671,-500.0,0.00013698,2]
[333285844,1722021043680,-507.10437537,0.00013698,2]
[333285845,1722021043690,-500.0,0.00013698,2]
[333285846,1722021043699,-500.0,0.00013698,2]
[333285847,1722021043709,-546.52,0.00013698,2]
[333285848,1722021043719,-500.0,0.00013698,2]
[333285849,1722021043728,-940.06,0.00013698,2]
[333285850,1722021043738,-500.0,0.00013698,2]
[333285851,1722021043747,-779.31,0.00013698,2]
[333285852,1722021043757,-500.0,0.00013698,2]
[333285853,1722021043766,-500.0,0.00013698,2]
[333285854,1722021043776,-500.0,0.00013698,2]
[333285855,1722021043786,-500.0,0.00013698,2]
[333285856,1722021043796,-500.0,0.00013698,2]
[333285858,1722021043807,-500.0,0.00013698,2]
[333285860,1722021043817,-500.0,0.00013698,2]
[333285862,1722021043827,-500.0,0.00013698,2]
[333285863,1722021043839,-500.0,0.00013698,2]
[333285864,1722021043850,-500.0,0.00013698,2]
[333285866,1722021043861,-500.0,0.00013698,2]
[333285868,1722021043871,-689.59,0.00013698,2]
[333285870,1722021043882,-502.77452337,0.00013698,2]
[333285871,1722021043891,-501.10551533,0.00013698,2]
[333285873,1722021043902,-504.37885215,0.00013698,2]
[333285874,1722021043916,-500.0,0.00013698,2]
[333285875,1722021043928,-500.0,0.00013698,2]
[333285876,1722021043937,-503.81854357,0.00013698,2]
[333285877,1722021043947,-1851.9,0.00013698,2]
[333285878,1722021043960,-1851.9,0.00013698,2]
[333285879,1722021043970,-1851.9,0.00013698,2]
[333285880,1722021043980,-1851.9,0.00013698,2]
[333285881,1722021043990,-1851.9,0.00013698,2]
[333285882,1722021044000,-1851.9,0.00013698,2]
[333285883,1722021044011,-1351.37,0.00013698,2]
[333285884,1722021044021,-1851.9,0.00013698,2]
[333285885,1722021044031,-1851.9,0.00013698,2]
[333285886,1722021044043,-1851.9,0.00013698,2]
[333285887,1722021044055,-1851.9,0.00013698,2]
[333285888,1722021044067,-569.84731539,0.00013698,2]
[333285889,1722021044076,-500.0,0.00013698,2]
[333285890,1722021044086,-1851.9,0.00013698,2]
[333285891,1722021044098,-500.0,0.00013698,2]
[333285892,1722021044109,-500.0,0.00013698,2]
[333285893,1722021044120,-369.97756427,0.00013698,2]
[333285894,1722021044131,-500.0,0.00013698,2]
[333285895,1722021044142,-500.0,0.00013698,2]
[333285896,1722021044152,-500.0,0.00013698,2]
[333285897,1722021044163,-500.0,0.00013698,2]
[333285898,1722021044174,-575.79482574,0.00013698,2]
[333285899,1722021044185,-500.0,0.00013698,2]
[333285900,1722021044195,-500.0,0.00013698,2]
[333285901,1722021044206,-500.0,0.00013698,2]
[333285902,1722021044216,-500.0,0.00013698,2]
[333285903,1722021044226,-500.0,0.00013698,2]
[333285904,1722021044236,-1851.9,0.00013698,2]
[333285905,1722021044246,-500.0,0.00013698,2]
[333285906,1722021044255,-470.54114744,0.00013698,2]
[333285907,1722021044265,-1851.9,0.00013698,2]
[333285908,1722021044276,-649.04346741,0.00013698,2]
[333285909,1722021044286,-500.0,0.00013698,2]
[333285910,1722021044296,-500.0,0.00013698,2]
[333285911,1722021044306,-1851.9,0.00013698,2]
[333285912,1722021044315,-1851.9,0.00013698,2]
[333285913,1722021044325,-500.0,0.00013698,2]
[333285914,1722021044335,-500.0,0.00013698,2]
[333285915,1722021044344,-1851.9,0.00013698,2]
[333285916,1722021044355,-1851.9,0.00013698,2]
[333285917,1722021044365,-1851.9,0.00013698,2]
[333285918,1722021044375,-1851.9,0.00013698,2]
[333285919,1722021044385,-500.0,0.00013698,2]
[333285920,1722021044394,-157.14943285,0.00013698,2]
[333285921,1722021044404,-485.68009819,0.00013698,2]
[333285922,1722021044414,-500.0,0.00013698,2]
[333285923,1722021044423,-500.0,0.00013698,2]
[333285924,1722021044434,-500.0,0.00013698,2]
[333285925,1722021044553,-500.0,0.00013698,2]
[333285926,1722021044580,-500.0,0.00013698,2]
[333285927,1722021044593,-634.59904297,0.00013698,2]
[333285928,1722021044604,-500.0,0.00013698,2]
[333285929,1722021044615,-393.14180727,0.00013698,2]
[333285930,1722021044635,-1851.9,0.00013698,2]
[333285931,1722021044646,-500.0,0.00013698,2]
[333285932,1722021044657,-500.0,0.00013698,2]
[333285933,1722021044667,-311.55570322,0.00013698,2]
[333285934,1722021044677,-500.0,0.00013698,2]
[333285935,1722021044687,-500.0,0.00013698,2]
[333285936,1722021044698,-500.0,0.00013698,2]
[333285937,1722021044709,-500.0,0.00013698,2]
[333285938,1722021044721,-1851.9,0.00013698,2]
[333285939,1722021044730,-500.0,0.00013698,2]
[333285940,1722021044740,-500.0,0.00013698,2]
[333285941,1722021044751,-500.0,0.00013698,2]
[333285942,1722021044761,-503.61714879,0.00013698,2]
[333285943,1722021044771,-500.0,0.00013698,2]
[333285944,1722021044782,-500.0,0.00013698,2]
[333285945,1722021044793,-500.0,0.00013698,2]
[333285946,1722021044802,-500.0,0.00013698,2]
[333285947,1722021044811,-500.0,0.00013698,2]